bitfinex/quotes_BTCUSD_20241211
["timestamp","ask_amount","ask_price","bid_price","bid_amount"]
[1733907022292,0.205871,98101.0,98100.0,0.51565733]
[1733907022900,0.210871,98101.0,98100.0,0.51565733]
[1733907023110,0.205871,98101.0,98100.0,0.51565733]
[1733907023574,0.005,98101.0,98100.0,0.51565733]
[1733907023781,0.20387,98102.0,98100.0,0.51565733]
[1733907023984,0.005,98101.0,98100.0,0.51565733]
[1733907024191,0.203856,98108.0,98100.0,0.51565733]
[1733907024813,0.002,98101.0,98100.0,0.51565733]
[1733907025713,0.002,98101.0,98100.0,0.51929937]
[1733907026524,0.00127418,98106.0,98100.0,0.51929937]
[1733907026979,0.003,98101.0,98100.0,0.51929937]
[1733907027181,0.018,98101.0,98100.0,0.62462461]
[1733907027462,0.002,98101.0,98100.0,0.62462461]
[1733907027674,0.002,98101.0,98100.0,0.66342461]
[1733907027880,0.002,98101.0,98100.0,0.86092461]
[1733907028314,0.00063665,98110.0,98105.0,0.407726]
[1733907028470,0.00063665,98110.0,98107.0,0.203859]
[1733907028698,0.00063665,98110.0,98108.0,0.10634431]
[1733907028904,0.00063665,98110.0,98109.0,0.203854]
[1733907029104,0.00063665,98110.0,98109.0,0.30917924]
[1733907029263,0.00063665,98110.0,98109.0,0.31280611]
[1733907029891,0.00163665,98110.0,98109.0,0.31280611]
[1733907030453,0.00263665,98110.0,98109.0,0.31280611]
[1733907032310,0.00063665,98110.0,98109.0,0.46280611]
[1733907032665,0.00163665,98110.0,98109.0,0.46280611]
[1733907033300,0.00163665,98110.0,98109.0,0.81884581]
[1733907033301,0.00263665,98110.0,98109.0,0.81884581]
[1733907033727,0.00363665,98110.0,98109.0,0.81884581]
[1733907033967,0.00363665,98110.0,98109.0,0.81884457]
[1733907034760,0.002,98110.0,98109.0,0.81884457]
[1733907036620,0.001,98110.0,98109.0,0.81884457]
[1733907036825,0.0775,98152.0,98144.0,0.203782]
[1733907037032,0.0775,98152.0,98145.0,0.10532524]
[1733907037252,0.0775,98152.0,98145.0,0.31280246]
[1733907037455,0.00127352,98151.0,98145.0,0.00369722]
[1733907037659,0.203778,98146.0,98145.0,0.00369722]
[1733907037860,0.203778,98146.0,98131.0,0.203807]
[1733907038068,0.203778,98146.0,98136.0,0.00703497]
[1733907038273,0.203778,98146.0,98137.0,0.10532524]
[1733907038524,0.203769,98150.0,98137.0,0.12474016]
[1733907038706,0.00127361,98149.0,98137.0,0.12842785]
[1733907038860,0.203773,98148.0,98137.0,0.12842785]
[1733907039060,0.003,98146.0,98138.0,0.01097413]
[1733907039305,0.003,98146.0,98139.0,0.10532524]
[1733907039464,0.003,98146.0,98139.0,0.1199868]
[1733907039671,0.009,98146.0,98144.0,0.20378]
[1733907039880,0.0775,98152.0,98145.0,0.10954459]
[1733907040239,0.0775,98152.0,98146.0,0.01940834]
[1733907040446,0.0775,98152.0,98147.0,0.12473358]
[1733907040654,0.0775,98152.0,98147.0,0.12841961]
[1733907040861,0.0775,98152.0,98148.0,0.01940834]
[1733907041068,0.0775,98152.0,98149.0,0.02309401]
[1733907041276,0.0775,98152.0,98150.0,0.01940834]
[1733907041479,0.0775,98152.0,98151.0,0.02587145]
[1733907041682,0.0775,98152.0,98151.0,0.02955677]
[1733907041888,0.0775,98152.0,98151.0,0.02309366]
[1733907042109,0.03689776,98152.0,98151.0,0.02309366]
[1733907042778,0.03289776,98152.0,98151.0,0.02309366]
[1733907042949,0.006,98152.0,98151.0,0.02409366]
[1733907043361,0.015,98152.0,98151.0,0.02251899]
[1733907043588,0.006,98152.0,98151.0,0.02251899]
[1733907043886,0.015,98152.0,98151.0,0.02251899]
[1733907044250,0.009,98152.0,98151.0,0.02151899]
[1733907044449,0.018,98152.0,98151.0,0.02151899]
[1733907044672,0.021,98152.0,98151.0,0.02151899]
[1733907045075,0.1035,98152.0,98151.0,0.02151899]
[1733907045502,0.1005,98152.0,98151.0,0.02151899]
[1733907045918,0.1045,98152.0,98151.0,0.02151899]
[1733907047349,0.1005,98152.0,98151.0,0.02151899]
[1733907047631,0.1005,98152.0,98151.0,0.0277945]
[1733907047632,0.1235,98152.0,98151.0,0.0277945]
[1733907047896,0.1255,98152.0,98151.0,0.02151899]
[1733907048083,0.2755,98152.0,98151.0,0.02151899]
[1733907048922,0.2575,98152.0,98151.0,0.02151899]
[1733907049094,0.2665,98152.0,98151.0,0.0075617]
[1733907049307,0.27480946,98152.0,98151.0,0.0075617]
[1733907049514,0.32080946,98152.0,98151.0,0.0075617]
[1733907049648,0.32080946,98152.0,98151.0,0.00861056]
[1733907049852,0.226767,98151.0,98150.0,0.51548573]
[1733907050048,0.455067,98151.0,98150.0,0.51925301]
[1733907050259,0.455067,98151.0,98150.0,0.52398745]
[1733907051070,0.455067,98151.0,98150.0,0.53001733]
[1733907051489,1.00618149,98151.0,98150.0,0.27340555]
[1733907051908,1.00618149,98151.0,98150.0,0.24926127]
[1733907052116,1.00618149,98151.0,98150.0,0.18339583]
[1733907052535,0.91339224,98151.0,98150.0,0.18339583]
[1733907052740,0.92239224,98151.0,98150.0,0.18339583]
[1733907053363,0.91339224,98151.0,98150.0,0.18339583]
[1733907053775,0.91539224,98151.0,98150.0,0.18339583]
[1733907053980,1.03719224,98151.0,98150.0,0.18339583]
[1733907054195,1.11926383,98151.0,98150.0,0.18339583]
[1733907054604,1.11026383,98151.0,98150.0,0.18339583]
[1733907054812,1.11726383,98151.0,98150.0,0.18339583]
[1733907055229,1.11726383,98151.0,98150.0,0.10188783]
[1733907055438,1.10126383,98151.0,98150.0,0.07987418]
[1733907055640,1.10126383,98151.0,98150.0,0.0762686]
[1733907055852,1.11026383,98151.0,98150.0,0.05580672]
[1733907056064,1.11026383,98151.0,98150.0,7.2e-07]
[1733907056278,1.11026383,98151.0,98106.0,0.00608319]
[1733907056279,0.353807,98132.0,98106.0,0.00608319]
[1733907056493,0.61273224,98132.0,98131.0,0.00376667]
[1733907056696,0.61273224,98132.0,98131.0,0.00011236]
[1733907057327,0.62173224,98132.0,98131.0,0.00011236]
[1733907057539,0.323,98131.0,98102.0,0.00731102]
[1733907057765,0.323,98131.0,98101.0,0.00055065]
[1733907057766,0.281867,98103.0,98101.0,0.00055065]
[1733907057978,0.281867,98103.0,98102.0,0.00913966]
[1733907058625,0.203867,98103.0,98102.0,0.00913966]
[1733907058862,0.203866,98104.0,98102.0,0.00913966]
[1733907059065,0.203866,98104.0,98101.0,0.00055065]
[1733907059066,0.203866,98104.0,98103.0,0.00351498]
[1733907059686,0.20386,98107.0,98103.0,0.00351498]
[1733907059888,0.20386,98107.0,98104.0,0.00351214]
[1733907060092,0.20386,98107.0,98101.0,0.00055065]
[1733907060093,0.203865,98104.0,98101.0,0.00055065]
[1733907060304,0.00127423,98103.0,98102.0,0.00351245]
[1733907060505,0.009,98104.0,98102.0,0.00351245]
[1733907060711,0.009,98104.0,98103.0,0.00351245]
[1733907060948,0.012,98104.0,98103.0,0.00351245]
[1733907061150,0.012,98104.0,98103.0,0.01393054]
[1733907061599,0.009,98104.0,98103.0,0.01393054]
[1733907061832,0.00127423,98112.0,98103.0,0.01393054]
[1733907062044,0.023,98118.0,98103.0,0.00479792]
[1733907062045,0.003,98104.0,98103.0,0.00479792]
[1733907062247,0.012,98104.0,98103.0,0.00912864]
[1733907062498,0.00127423,98111.0,98103.0,0.01392656]
[1733907062736,0.00127423,98118.0,98104.0,0.00912669]
[1733907062968,0.11275175,98120.0,98104.0,0.00912669]
[1733907062969,0.0012741,98117.0,98105.0,0.01053054]
[1733907063176,0.0012741,98119.0,98106.0,0.01614649]
[1733907063384,0.0012741,98119.0,98105.0,0.00585617]
[1733907063385,0.0242741,98119.0,98107.0,0.01614649]
[1733907063625,0.0242741,98119.0,98108.0,0.01614649]
[1733907063823,0.023,98117.0,98109.0,0.01614649]
[1733907064029,0.023,98117.0,98110.0,0.01614649]
[1733907064030,0.0012741,98116.0,98110.0,0.01614649]
[1733907064230,0.0012741,98116.0,98103.0,0.00479792]
[1733907064231,0.0012741,98116.0,98111.0,0.00912669]
[1733907064477,0.0012741,98116.0,98112.0,0.00912669]
[1733907064690,0.0012741,98116.0,98113.0,0.00912669]
[1733907064868,0.0012741,98116.0,98114.0,0.00912669]
[1733907065070,0.0012741,98116.0,98103.0,0.00479792]
[1733907065071,0.0012741,98116.0,98115.0,0.00912669]
[1733907065269,0.00127409,98116.0,98115.0,0.00912669]
[1733907065674,0.01040009,98116.0,98115.0,0.00912669]
[1733907066100,0.01040009,98116.0,98115.0,0.01614483]
[1733907066699,0.02540009,98116.0,98115.0,0.01614483]
[1733907067933,0.01640009,98116.0,98115.0,0.01614483]
[1733907068106,0.01040009,98116.0,98115.0,0.01614483]
[1733907068326,0.01040009,98116.0,98115.0,0.02094248]
[1733907068613,0.22451786,98116.0,98115.0,0.02094248]
[1733907068823,0.24624377,98116.0,98115.0,0.02093423]
[1733907069005,0.219966,98116.0,98115.0,0.01613658]
[1733907069155,0.219966,98116.0,98115.0,0.01613694]
[1733907069360,0.212966,98116.0,98115.0,0.01613694]
[1733907069842,0.229966,98116.0,98115.0,0.01613694]
[1733907070047,0.220966,98116.0,98115.0,0.01613694]
[1733907070247,0.220966,98116.0,98115.0,0.00350741]
[1733907070396,0.252966,98116.0,98115.0,0.00350741]
[1733907070594,0.243966,98116.0,98115.0,0.00350741]
[1733907070799,0.220966,98116.0,98115.0,0.00350741]
[1733907071120,0.203865,98104.0,98103.0,0.00479792]
[1733907071294,0.203865,98104.0,98103.0,0.01315559]
[1733907071921,0.20294261,98104.0,98103.0,0.01315559]
[1733907072130,0.20294261,98104.0,98103.0,0.0195871]
[1733907072425,0.20694261,98104.0,98103.0,0.0195871]
[1733907072647,0.21594261,98104.0,98103.0,0.01315559]
[1733907072850,0.20694261,98104.0,98103.0,0.01315559]
[1733907073280,0.35500837,98104.0,98103.0,0.01958775]
[1733907074236,0.50500837,98104.0,98103.0,0.01958775]
[1733907075271,0.51130148,98104.0,98103.0,0.01958775]
[1733907075623,0.51930148,98104.0,98103.0,0.01960076]
[1733907076131,0.51030148,98104.0,98103.0,0.01960076]
[1733907076347,0.48834713,98104.0,98103.0,0.01960076]
[1733907076550,0.48734713,98104.0,98103.0,0.01960076]
[1733907076753,0.61567237,98104.0,98103.0,0.01960076]
[1733907076912,0.62467237,98104.0,98103.0,0.01960076]
[1733907077111,0.61567237,98104.0,98103.0,0.01960076]
[1733907077399,0.61567237,98104.0,98103.0,0.01316931]
[1733907077770,0.61567237,98104.0,98103.0,0.00801536]
[1733907077989,0.62467237,98104.0,98103.0,0.00801536]
[1733907078181,0.62467237,98104.0,98103.0,0.01316954]
[1733907078392,0.61667237,98104.0,98103.0,0.01316954]
[1733907078541,0.376871,98101.0,98100.0,7.9e-07]
[1733907078742,0.48219624,98101.0,98100.0,7.9e-07]
[1733907080110,0.49119624,98101.0,98100.0,7.9e-07]
[1733907080307,0.49119624,98101.0,98100.0,0.00644463]
[1733907080520,0.353875,98099.0,98098.0,0.04354472]
[1733907080662,0.48220024,98099.0,98098.0,0.04354472]
[1733907081664,0.376875,98099.0,98098.0,0.04354472]
[1733907082453,0.385875,98099.0,98098.0,0.04354472]
[1733907082848,0.58505216,98099.0,98098.0,0.04354472]
[1733907082996,0.58505216,98099.0,98080.0,0.0001718]
[1733907082997,0.203902,98087.0,98080.0,0.0001718]
[1733907083198,0.509713,98081.0,98080.0,0.0001718]
[1733907084379,0.61503824,98081.0,98080.0,0.00508759]
[1733907084592,0.63431179,98081.0,98080.0,0.00508759]
[1733907084810,0.51998655,98081.0,98080.0,0.0001718]
[1733907085023,0.54038451,98081.0,98080.0,0.0001718]
[1733907085532,0.54038451,98081.0,98080.0,0.0050857]
[1733907085741,0.54938451,98081.0,98080.0,0.0001718]
[1733907086342,0.51749501,98081.0,98080.0,0.0001718]
[1733907086554,0.71535035,98081.0,98080.0,0.0001718]
[1733907086755,0.72435035,98081.0,98080.0,0.0001718]
[1733907086898,0.71535035,98081.0,98080.0,0.0001718]
[1733907087322,0.71535035,98081.0,98080.0,8e-07]
[1733907087527,0.63182025,98081.0,98080.0,8e-07]
[1733907087927,0.62282025,98081.0,98080.0,8e-07]
[1733907088181,0.63182025,98081.0,98080.0,8e-07]
[1733907088585,0.63182025,98081.0,98063.0,6e-05]
[1733907088586,0.376931,98072.0,98063.0,6e-05]
[1733907088842,0.48225624,98072.0,98063.0,6e-05]
[1733907089485,0.48225624,98072.0,98071.0,0.00550323]
[1733907089714,0.48225624,98072.0,98063.0,6e-05]
[1733907089715,0.57671526,98072.0,98063.0,6e-05]
[1733907089920,0.376946,98065.0,98063.0,6e-05]
[1733907090135,0.60587124,98065.0,98063.0,6e-05]
[1733907090341,0.60587124,98065.0,98064.0,0.04264981]
[1733907090542,0.60587124,98065.0,98064.0,0.03799557]
[1733907090963,0.376946,98065.0,98064.0,0.04118506]
[1733907091421,0.394946,98065.0,98064.0,0.04118506]
[1733907091632,0.41566003,98065.0,98064.0,0.04118506]
[1733907092276,0.41566003,98065.0,98064.0,0.03799557]
[1733907092486,0.26566003,98065.0,98064.0,0.04118496]
[1733907092730,0.26705821,98065.0,98064.0,0.04118496]
[1733907093138,0.26505821,98065.0,98064.0,0.04118496]
[1733907093340,0.203973,98052.0,98043.0,0.04927479]
[1733907093538,0.18100954,98052.0,98044.0,0.00637873]
[1733907093772,0.1822844,98052.0,98045.0,0.00637873]
[1733907093984,0.00127486,98052.0,98046.0,0.00637873]
[1733907094188,0.00127486,98052.0,98047.0,0.00637873]
[1733907094396,0.203975,98051.0,98048.0,0.00637873]
[1733907094598,0.203975,98051.0,98049.0,0.00637873]
[1733907094803,0.004,98052.0,98050.0,0.00637873]
[1733907095034,0.203975,98051.0,98039.0,0.203999]
[1733907095261,0.203992,98043.0,98040.0,0.00637873]
[1733907095443,0.203996,98041.0,98040.0,0.01024394]
[1733907095657,0.203996,98041.0,98031.0,0.04666506]
[1733907095658,0.204,98039.0,98031.0,0.04666506]
[1733907095859,0.204,98039.0,98038.0,0.02108035]
[1733907096068,0.2651988,98039.0,98038.0,0.02108035]
[1733907096497,0.2651988,98039.0,98038.0,0.0147001]
[1733907096908,0.27474884,98039.0,98038.0,0.0147001]
[1733907097118,0.24246855,98039.0,98038.0,0.0147001]
[1733907098345,0.39246855,98039.0,98038.0,0.0147001]
[1733907098557,0.60079379,98039.0,98038.0,0.0147001]
[1733907099609,0.58379379,98039.0,98038.0,0.0147001]
[1733907100025,0.60179379,98039.0,98038.0,0.0147001]
[1733907100230,0.59279379,98039.0,98038.0,0.0147001]
[1733907100432,0.56979379,98039.0,98038.0,0.0147001]
[1733907100867,0.56079379,98039.0,98038.0,0.0147001]
[1733907101071,0.64811501,98039.0,98038.0,0.0147001]
[1733907101278,0.65711501,98039.0,98038.0,0.0147001]
[1733907101481,0.65711501,98039.0,98038.0,0.02618592]
[1733907102214,0.65711501,98039.0,98038.0,0.0147001]
[1733907102418,0.64811501,98039.0,98038.0,0.0147001]
[1733907102802,0.65711501,98039.0,98038.0,0.0147001]
[1733907102978,0.64811501,98039.0,98038.0,0.0147001]
[1733907103179,0.72561827,98039.0,98038.0,0.0147001]
[1733907103390,0.87561827,98039.0,98038.0,0.0147001]
[1733907103796,0.72561827,98039.0,98038.0,0.0147001]
[1733907103942,0.72561827,98039.0,98038.0,0.01214695]
[1733907104615,0.87561827,98039.0,98038.0,0.01214695]
[1733907105145,0.95711501,98039.0,98038.0,9.5e-07]
[1733907105367,0.354015,98032.0,98031.0,0.04666506]
[1733907105572,0.5278435,98032.0,98031.0,0.04666506]
[1733907106354,0.63294679,98032.0,98031.0,0.04985584]
[1733907106999,0.63294679,98032.0,98010.0,0.0001718]
[1733907107000,0.204056,98012.0,98010.0,8e-07]
[1733907107202,0.204056,98012.0,97952.0,0.0461]
[1733907107203,0.204079,98001.0,97990.0,0.00383287]
[1733907107335,0.45940424,98001.0,97978.0,0.0832]
[1733907107533,0.204075,98003.0,98000.0,0.0385927]
[1733907107762,0.408129,98008.0,98000.0,0.11859887]
[1733907107967,0.01713795,98012.0,98000.0,0.11859887]
[1733907107968,0.00127552,98007.0,98001.0,0.00323665]
[1733907108308,0.204069,98006.0,98001.0,0.00323665]
[1733907108668,0.20461904,98006.0,98000.0,0.11859887]
[1733907108843,0.20461904,98006.0,98002.0,0.0032363]
[1733907109042,0.00055004,98006.0,98001.0,0.00323665]
[1733907109289,0.00055004,98006.0,98003.0,0.00323595]
[1733907109487,0.00055004,98006.0,98000.0,0.11859887]
[1733907109488,0.00055004,98006.0,98004.0,0.008341]
[1733907109699,0.00055004,98006.0,98005.0,0.0051054]
[1733907109841,0.0038946,98003.0,98000.0,0.11859887]
[1733907110047,0.00055004,98006.0,98000.0,0.11859887]
[1733907110270,0.35534644,98005.0,98004.0,0.00376132]
[1733907110495,0.354071,98005.0,98004.0,0.006382]
[1733907111358,0.32216043,98005.0,98004.0,0.006382]
[1733907112053,0.32216043,98005.0,98000.0,0.03539887]
[1733907112257,0.204071,98005.0,98001.0,0.00638232]
[1733907112458,0.204075,98003.0,98002.0,0.00638242]
[1733907113490,0.204075,98003.0,98001.0,0.001]
[1733907113703,0.41715,98003.0,98000.0,0.03539887]
[1733907114126,0.222075,98003.0,98002.0,0.001]
[1733907114330,0.213075,98003.0,98002.0,0.01114332]
[1733907114532,0.213075,98003.0,98002.0,0.00738242]
[1733907115593,0.28063617,98003.0,98002.0,0.001]
[1733907115801,0.28963617,98003.0,98002.0,0.001]
[1733907116005,0.222075,98003.0,98002.0,0.001]
[1733907116424,0.40815,98003.0,98000.0,0.03539887]
[1733907116627,0.204079,98001.0,98000.0,0.03539887]
[1733907117419,0.204079,98001.0,98000.0,0.04178184]
[1733907117767,0.213079,98001.0,98000.0,0.04178184]
[1733907118177,0.2866961,98001.0,98000.0,0.03539887]
[1733907118377,0.204079,98001.0,98000.0,0.0417818]
[1733907118988,0.204079,98001.0,98000.0,0.04497326]
[1733907119193,0.213079,98001.0,98000.0,0.04497326]
[1733907119683,0.222079,98001.0,98000.0,0.04497326]
[1733907119882,0.222079,98001.0,98000.0,0.05007959]
[1733907120340,0.23246407,98001.0,98000.0,0.05007959]
[1733907121159,0.02838507,98001.0,98000.0,0.05007959]
[1733907121358,0.018,98001.0,98000.0,0.05352369]
[1733907121567,0.018,98001.0,98000.0,0.05339282]
[1733907121990,0.018,98001.0,98000.0,0.15339282]
[1733907122194,0.009,98001.0,98000.0,0.15339282]
[1733907122397,0.18170679,98008.0,98000.0,0.16296591]
[1733907122602,0.006,98001.0,98000.0,0.13926214]
[1733907122807,0.006,98001.0,98000.0,0.24161316]
[1733907123033,0.015,98001.0,98000.0,0.24161316]
[1733907123244,0.18170679,98008.0,98000.0,0.24161316]
[1733907123455,0.18170679,98008.0,98001.0,0.01467825]
[1733907123669,0.017,98008.0,98002.0,0.01148731]
[1733907123877,0.008,98008.0,98003.0,0.21237139]
[1733907124087,0.008,98008.0,98004.0,0.01467823]
[1733907124296,0.008,98008.0,98005.0,0.52814547]
[1733907124500,0.008,98008.0,98007.0,0.204067]
[1733907124704,0.008,98008.0,98007.0,0.21874523]
[1733907124915,0.008,98008.0,98007.0,0.22212854]
[1733907125120,8.59e-05,98010.0,98007.0,0.42619554]
[1733907125330,0.00127529,98031.0,98008.0,0.01467823]
[1733907125540,0.00127529,98031.0,98007.0,0.20745031]
[1733907125541,0.21442023,98032.0,98014.0,0.204051]
[1733907125747,0.00125873,98030.0,98015.0,0.00829639]
[1733907125951,0.00125873,98030.0,98016.0,0.00829639]
[1733907126101,0.204021,98029.0,98017.0,0.00829639]
[1733907126308,0.00125873,98028.0,98018.0,0.21233839]
[1733907126509,0.01025873,98031.0,98019.0,0.01167549]
[1733907126739,0.00125873,98030.0,98020.0,0.00829639]
[1733907126944,0.00125873,98030.0,98021.0,0.00829429]
[1733907127309,0.02024404,98033.0,98021.0,0.00829429]
[1733907127310,0.009,98029.0,98022.0,0.00319011]
[1733907127524,0.02024404,98033.0,98023.0,0.00319011]
[1733907127525,0.00125873,98028.0,98023.0,0.00319011]
[1733907127703,0.00125873,98032.0,98024.0,0.00319011]
[1733907127854,0.01025873,98031.0,98025.0,0.00319011]
[1733907128058,0.009,98031.0,98026.0,0.00319011]
[1733907128258,0.009,98031.0,98027.0,0.00319011]
[1733907128472,0.00125873,98030.0,98028.0,0.00829421]
[1733907128674,0.00125873,98030.0,98029.0,0.00829421]
[1733907128875,0.00125873,98030.0,98029.0,0.01163705]
[1733907129086,0.00125873,98035.0,98029.0,0.00829421]
[1733907129314,0.00125873,98034.0,98030.0,0.00957004]
[1733907129589,0.17038135,98036.0,98031.0,0.01467398]
[1733907129898,0.02038135,98036.0,98033.0,0.204012]
[1733907130109,0.203966,98056.0,98039.0,0.203999]
[1733907130328,0.0103747,98050.0,98039.0,0.10532524]
[1733907130530,0.082,98066.0,98041.0,0.203996]
[1733907130531,0.203948,98064.0,98041.0,0.203996]
[1733907130737,0.203948,98064.0,98040.0,0.21673808]
[1733907130738,0.203985,98047.0,98042.0,0.00510394]
[1733907130948,0.00125873,98046.0,98043.0,0.00829265]
[1733907131150,0.00125873,98051.0,98041.0,0.203996]
[1733907131344,0.22481675,98052.0,98044.0,0.00335406]
[1733907131546,0.02084275,98052.0,98044.0,0.203988]
[1733907131872,0.02084275,98052.0,98045.0,0.00335371]
[1733907132081,0.02084275,98052.0,98044.0,0.19834171]
[1733907132279,0.02084275,98052.0,98045.0,0.00301834]
[1733907132512,0.02084275,98052.0,98046.0,0.203985]
[1733907132719,0.02084275,98052.0,98047.0,0.00301764]
[1733907132720,0.02984275,98052.0,98047.0,0.00301764]
[1733907132966,0.02984275,98052.0,98046.0,0.203985]
[1733907133143,0.02084275,98052.0,98048.0,0.00301729]
[1733907133351,0.02984275,98052.0,98049.0,0.203979]
[1733907133555,0.03684275,98052.0,98049.0,0.00300071]
[1733907133797,0.02784275,98052.0,98049.0,0.00300071]
[1733907134004,0.009,98052.0,98046.0,0.203985]
[1733907134193,0.009,98052.0,98050.0,0.00300036]
[1733907134435,0.015,98052.0,98046.0,0.203985]
[1733907134576,0.015,98052.0,98051.0,0.00300001]
[1733907134781,0.015,98052.0,98041.0,1.0]
[1733907134986,0.015,98052.0,98051.0,0.20697501]
[1733907135187,0.015,98052.0,98041.0,1.0]
[1733907135387,0.015,98052.0,98051.0,0.00300001]
[1733907135590,0.015,98052.0,98048.0,0.20398]
[1733907135844,0.006,98052.0,98051.0,0.00300001]
[1733907135960,0.006,98052.0,98048.0,0.20398]
[1733907136167,0.203938,98069.0,98051.0,0.00300001]
[1733907136366,0.016,98052.0,98049.0,0.00308137]
[1733907136579,0.016,98052.0,98050.0,0.00637853]
[1733907136783,0.016,98052.0,98051.0,0.00637853]
[1733907136995,0.009,98052.0,98051.0,0.00637853]
[1733907137233,0.33229824,98052.0,98051.0,0.00300001]
[1733907137433,0.57225932,98052.0,98051.0,0.00300001]
[1733907137636,0.203994,98042.0,98022.0,0.204034]
[1733907138102,0.203994,98042.0,98041.0,1.00334493]
[1733907138510,0.203994,98042.0,98041.0,2.00334493]
[1733907138721,0.203994,98042.0,98041.0,2.0044599]
[1733907139302,0.203994,98042.0,98041.0,2.01083938]
[1733907139497,0.203994,98042.0,98041.0,2.11083938]
[1733907140007,0.209994,98042.0,98041.0,2.11083938]
[1733907140393,0.02042468,98045.0,98041.0,2.11083938]
[1733907140394,0.00345861,98045.0,98041.0,2.11083938]
[1733907140592,0.00345861,98045.0,98041.0,2.1044599]
[1733907140593,0.009,98042.0,98041.0,2.1044599]
[1733907140821,0.009,98042.0,98041.0,2.11594265]
[1733907141027,0.016,98042.0,98041.0,2.11594265]
[1733907141403,0.00345861,98045.0,98041.0,2.11594265]
[1733907141640,0.009,98045.0,98042.0,0.21547675]
[1733907141857,0.009,98045.0,98043.0,0.01148275]
[1733907142168,0.009,98045.0,98044.0,0.21047275]
[1733907142398,0.203965,98056.0,98044.0,0.21047275]
[1733907142609,0.203965,98056.0,98045.0,0.00510344]
[1733907142820,0.203965,98056.0,98046.0,0.00510344]
[1733907143000,0.203965,98056.0,98047.0,0.00829286]
[1733907143208,0.203965,98056.0,98048.0,0.00829286]
[1733907143442,0.203965,98056.0,98048.0,0.00334537]
[1733907143650,0.203965,98056.0,98049.0,0.00829249]
[1733907143851,0.203965,98056.0,98050.0,0.00829249]
[1733907144068,0.203965,98056.0,98051.0,0.00829249]
[1733907144274,0.203965,98056.0,98052.0,0.00829249]
[1733907144453,0.017,98056.0,98053.0,0.00829249]
[1733907144712,0.008,98056.0,98054.0,0.00829249]
[1733907144925,0.286638,98069.0,98042.0,0.282594]
[1733907144926,0.203934,98071.0,98055.0,0.00829249]
[1733907145135,0.0751,98076.0,98055.0,0.203967]
[1733907145136,0.009,98056.0,98055.0,0.203967]
[1733907145354,0.017,98056.0,98055.0,0.31758351]
[1733907145769,0.017,98056.0,98055.0,1.31758351]
[1733907146414,0.008,98056.0,98055.0,1.31758351]
[1733907146648,8.58e-05,98060.0,98057.0,0.203962]
[1733907146919,8.58e-05,98060.0,98059.0,0.203958]
[1733907147241,8.58e-05,98060.0,98059.0,0.31757451]
[1733907147250,8.58e-05,98060.0,98059.0,0.66307451]
[1733907147470,8.58e-05,98070.0,98069.0,0.353938]
[1733907147732,8.58e-05,98070.0,98069.0,0.61755451]
[1733907148002,8.58e-05,98070.0,98069.0,0.78157956]
[1733907148193,0.00125873,98115.0,98080.0,0.15]
[1733907148394,0.203846,98114.0,98090.0,0.11934078]
[1733907148610,0.01939633,98116.0,98091.0,0.12420411]
[1733907148827,0.009126,98116.0,98092.0,0.01785953]
[1733907149030,0.00063618,98110.0,98109.0,0.203854]
[1733907149290,0.00063618,98110.0,98109.0,0.21214527]
[1733907149483,0.00063618,98110.0,98109.0,0.32703877]
[1733907150019,0.00063618,98110.0,98109.0,0.3187475]
[1733907150201,0.00463618,98110.0,98109.0,0.33340713]
[1733907150402,0.01063618,98110.0,98109.0,0.33440713]
[1733907150843,0.00063618,98110.0,98109.0,0.33340713]
[1733907151066,0.00863618,98110.0,98109.0,0.33440713]
[1733907151512,0.00263618,98110.0,98109.0,0.33340713]
[1733907151729,0.203798,98136.0,98120.0,0.20383]
[1733907152038,0.00125873,98135.0,98121.0,0.01465963]
[1733907152234,0.00125873,98135.0,98122.0,0.01465963]
[1733907152434,0.00125873,98135.0,98124.0,0.00254361]
[1733907152641,0.00125873,98135.0,98125.0,0.01465963]
[1733907152846,0.00125873,98135.0,98126.0,0.01465963]
[1733907153016,0.00125873,98135.0,98127.0,0.01465963]
[1733907153229,0.00125873,98135.0,98120.0,0.20383]
[1733907153230,0.01025873,98135.0,98128.0,0.01465939]
[1733907153440,0.01025873,98135.0,98129.0,0.01465939]
[1733907153664,0.00125873,98135.0,98130.0,0.01465939]
[1733907153994,0.01025873,98135.0,98131.0,0.01465939]
[1733907154101,0.01025873,98135.0,98127.0,0.0025439]
[1733907154102,0.00125873,98135.0,98132.0,0.01465939]
[1733907154304,0.005,98135.0,98133.0,0.01465939]
[1733907154584,0.00332331,98135.0,98134.0,0.01465939]
[1733907155203,0.00832331,98135.0,98134.0,0.01465939]
[1733907155410,0.03132331,98135.0,98134.0,0.00318682]
[1733907155995,0.00832331,98135.0,98134.0,0.00318682]
[1733907156608,0.00332331,98135.0,98134.0,0.00318682]
[1733907156808,0.01232331,98135.0,98134.0,0.10318682]
[1733907157012,0.14132524,98135.0,98134.0,0.10318682]
[1733907157219,0.013,98135.0,98134.0,0.101]
[1733907157429,0.018,98135.0,98134.0,0.1156592]
[1733907157968,0.006,98135.0,98134.0,0.1156592]
[1733907158177,0.029,98135.0,98134.0,0.1156592]
[1733907158387,0.029,98135.0,98134.0,0.101]
[1733907158815,0.006,98135.0,98134.0,0.101]
[1733907159216,0.006,98135.0,98134.0,0.10418658]
[1733907159412,0.006,98135.0,98134.0,0.11565809]
[1733907159662,8.59e-05,98140.0,98134.0,0.11565803]
[1733907159861,0.023,98138.0,98135.0,0.01065803]
[1733907160061,0.023,98138.0,98136.0,0.00955959]
[1733907160286,0.023,98138.0,98137.0,0.00955959]
[1733907161482,0.031,98138.0,98137.0,0.01055959]
[1733907162242,0.008,98138.0,98137.0,0.01055959]
[1733907162370,0.008,98138.0,98137.0,0.00418653]
[1733907162764,0.012,98138.0,98137.0,0.00418653]
[1733907163164,0.008,98138.0,98137.0,0.00418645]
[1733907163379,0.008,98138.0,98137.0,0.01055935]
[1733907163581,0.012,98138.0,98137.0,0.01055935]
[1733907163783,0.004,98138.0,98137.0,0.00955935]
[1733907164070,8.59e-05,98140.0,98138.0,0.203794]
[1733907164221,8.59e-05,98140.0,98139.0,0.00955935]
[1733907164422,8.59e-05,98140.0,98134.0,0.3038]
[1733907164854,0.008,98138.0,98137.0,0.001]
[1733907165457,0.008,98138.0,98137.0,0.00111246]
[1733907166115,0.004,98138.0,98137.0,0.00011246]
[1733907166536,8.59e-05,98140.0,98137.0,0.00011246]
[1733907166537,0.023,98139.0,98137.0,0.00011246]